{"text_format":"1","workbook":"xlsx","n_sheets":2,"sheets":["Waviness Calculator","Tadpole Plot"],"not_rendered":{"charts":2,"images":1,"macros":1,"external_links":0,"defined_names":0,"comments":0,"pivot_tables":0},"unopened":[],"bounds":{"document_bytes":16777216,"sheet_cells":100000,"rows_first":2000,"rows_last":500,"rows_between":2000,"halvings":0,"cell_chars":16384,"cell_head_chars":4096},"cells_cut":0,"cells_raw":0,"read":"whole","date_system":"1900"}

{"sheet":"Waviness Calculator","index":0,"n_rows":73,"n_cols":13,"rows_kept":73,"cut":false,"hidden":false,"merged":[[10,0,10,1],[7,4,8,7],[52,13,52,19],[51,14,51,20],[57,1,61,7],[64,1,64,7],[62,1,63,7],[17,4,18,7],[20,4,21,7],[23,4,24,6],[54,1,56,7],[69,0,72,0],[3,9,3,12],[69,1,69,4],[70,1,70,4],[71,1,71,4],[72,1,72,4],[49,1,49,6],[51,1,51,7],[50,1,50,7],[52,1,52,7],[23,7,24,7],[5,0,5,1],[6,0,6,1],[7,0,7,1],[8,0,8,1],[9,0,9,1]]}
["Down-Dip Wavelength Calculator"]
[]
["Project:",null,null,"Lithology:",null,null,"Date:"]
["Site:",null,null,"Domain:",null,null,"Originator:",null,null,"DO NOT CHANGE THESE CELLS "]
[]
["Borehole Azimuth",null,null,120,null,null,null,null,null,null,null,{"$f":"IF(AND(MAX(J11,D11)>D6,MIN(D11,J11)<D6),\"inside\",\"outside\")","v":"inside"}]
["Borehole Inclination",null,"α",60,"Degrees Below Horizontal (positive values only)"]
["Bedding Dip",null,"Ds",28,"Slope/inter-ramp scale average (positive values only)"]
["Bedding Dip Dir",null,null,90,null,null,null,null,null,{"$f":"IF(D9+90>360,D9+90-360,D9+90)","v":180},{"$f":"IF(D9-90<0,360+D9-90,D9-90)","v":0},{"$f":"IF(AND(MAX(D11,J11)>D9,MIN(D11,J11)<D9),\"inside\",\"outside\")","v":"inside"},{"$f":"IF(ABS($D9-$D6)>90,IF(ABS($D9-90-$D6)>180,ABS(180-ABS($D9-90-$D6)),ABS($D9-90-$D6)),IF(ABS($D9-90-$D6)>180,180-ABS($D9-90-$D6),ABS($D9-90-$D6)*-1))","v":-120}]
["Apparent Wavelength (m)",null,"Lbh",5,"Measured downhole"]
["Fold Axis Trend",null,null,0,"In plunge direction",null,null,null,null,{"$f":"IF(D11<=180,D11+180,D11-180)","v":180}]
[]
["Down-Dip Wavelength (m)",null,"Ldd",{"$f":"ABS(D10*SIN(RADIANS(D8))*(SIN(RADIANS(D7))+(COS(RADIANS(D7))*TAN(RADIANS(D8))*SIN(RADIANS(G70)))+(COS(RADIANS(D7))*SIN(RADIANS(G72)))/(SIN(RADIANS(G73))*COS(RADIANS(D8))*SIN(RADIANS(D8)))))","v":3.9445091127001892}]
[]
["Amplitude and Dilation Angle Estimator"]
[null,null,null,null,null,null,"Method:","Manual Entry"]
[null,null,"Dip","Dip Dir"]
["Limb A Max Dip",null,38,150,"True dip - corrected TV or ori core data "]
["Limb B Max Dip",null,49,150]
[null,null,"Dip","Dip Dir",null,null,null,null,null,"Manual Entry Calculations"]
["Limb A apparent dip",null,{"$f":"IF(H16=\"Manual Entry\", L21,'Tadpole Plot'!L3)","v":21.337744793105369},{"$f":"D9","v":90},"Apparent dip in the direction of sliding",null,null,null,null,"Limb A apparent dip",null,{"$f":"ATAN(TAN(PI()/180*C18)*SIN(PI()/180*(IF((MAX(D$9+90,D18)-MIN(D$9+90,D18))>180,360-(MAX(D$9+90,D18)-MIN(D$9+90,D18)),(MAX(D$9+90,D18)-MIN(D$9+90,D18))))))*180/PI()","v":21.337744793105369},{"$f":"IF(D$9<100,CONCATENATE(\"0\",D$9),D$9)","v":"090"}]
["Limb B apparent dip",null,{"$f":"IF(H16=\"Manual Entry\", L22,'Tadpole Plot'!M3)","v":29.906832885567891},{"$f":"D9","v":90},null,null,null,null,null,"Limb B apparent dip",null,{"$f":"ATAN(TAN(PI()/180*C19)*SIN(PI()/180*(IF((MAX(D$9+90,D19)-MIN(D$9+90,D19))>180,360-(MAX(D$9+90,D19)-MIN(D$9+90,D19)),(MAX(D$9+90,D19)-MIN(D$9+90,D19))))))*180/PI()","v":29.906832885567891},{"$f":"IF(D$9<100,CONCATENATE(\"0\",D$9),D$9)","v":"090"}]
[]
["ILA (Down-dip)",null,{"$f":"IF(H16=\"Manual Entry\",L24,'Tadpole Plot'!P3)","v":171.43091190753748},null,"Applicable Failure Scale \n(WL = 2 to 10% surface length):",null,null,{"$f":"CONCATENATE((ROUND(D13*10,0)),\" to \",ROUND(D13*50,0),\" m\")","v":"39 to 197 m"},null,"ILA (Down-dip)",null,{"$f":"180-(MAX(L21,L22)-MIN(L21,L22))","v":171.43091190753748}]
["Dilation Angle (i)",null,{"$f":"IF(H16=\"Manual Entry\", L25,'Tadpole Plot'!Q3)","v":4.2845440462312609},null,null,null,null,null,null,"Roughness Angle (i)",null,{"$f":"(180-L24)/2","v":4.2845440462312609}]
[]
[]
[]
[]
[]
[]
[]
[]
[]
[]
[]
[]
[]
[]
[]
[]
[]
[]
[]
[]
[]
[]
["Instructions:"]
[null,"Only edit blue cells"]
[1,"Enter borehole orientation data in cells D6 & D7"]
[2,"Enter the average inter-ramp scale bedding orientation in cells D8 & D9 (i.e., from structural model or similar)"]
[3,"Enter the apparent wavelength downhole (Lbh), from tadpole plots or similar, in cell D10"]
[4,"Enter the trend of the waviness fold axis in cell D11 (e.g. from stereographic analysis). If waviness axes are assumed to be parallel to overall bedding strike, simply enter the bedding strike."]
[5,"The down-dip wavelength is calculated in cell D13"]
[6,"Select \"Manual Entry\" from the dropdown list in cell H16 to enter the apparent limb orientations manually, or select \"From Tadpole Sheet\" to automatically fill in this data from data entered in the Tadpole Plot tab."]
[]
[]
[7,"If using Manual Entry, enter the fold limb dip angles for a typical, representative fold/wave in cells C18 & C19, and associated dip directions in D18 & D19. These are true dip measurements from corrected TV or ori core data. The calculation assumes that both are dipping in the same direction. If they are dipping in opposite directions the minimum dip value should be entered as a negative value."]
[]
[]
[]
[]
[8,"The inter-limb angle (ILA) in the direction of the overall bedding dip is calculated in cell C24 and the dilation angle \"i\" in C25"]
[]
[9,"The ILA and wavelength are plotted on the Ampliltude chart"]
[]
[]
[]
[]
["DO NOT CHANGE THESE CELLS ","Angle between BH Azi and Bedding Strike",null,null,null,"β",{"$f":"IF(G71<0,-1*(MIN(180-(MIN(MOD((D9+90)-D6,360), 360-MOD((D9+90)-D6,360))),(MIN(MOD((D9+90)-D6,360), 360-MOD((D9+90)-D6,360))))),(MIN(180-(MIN(MOD((D9+90)-D6,360), 360-MOD((D9+90)-D6,360))),(MIN(MOD((D9+90)-D6,360), 360-MOD((D9+90)-D6,360))))))","v":-60}]
[null,"Apparent Bedding dip along BH",null,null,null,null,{"$f":"ATAN(TAN(PI()/180*D8)*SIN(PI()/180*M9))*180/PI()","v":-24.724835449415298}]
[null,"BH Azi : Axis Trend angle",null,null,null,"ɸ",{"$f":"IF(L6=L9,ABS(MIN(MOD(D11-D6,360),360-MOD(D11-D6,360))),ABS(MIN(MOD(D11-D6,360),360-MOD(D11-D6,360)))*-1)","v":120}]
[null,"Dip Dir : Trend angle",null,null,null,"λ",{"$f":"(MIN(MOD(D11-D9,360),360-MOD(D11-D9,360)))","v":90}]

{"sheet":"Tadpole Plot","index":1,"n_rows":498,"n_cols":19,"rows_kept":498,"cut":false,"hidden":false,"merged":[[0,1,0,3]]}
[null,"Structural Data - True Dip & Dip Direction"]
[null,"Depth (m)","Dip (°)","Dip Dir (°)",null,null,"Apparent Dip (°)",null,"Y-axis Major Interval (m)",null,null,"Lower Bound","Upper Bound","Slope Scale Strike","Ds (°)","ILA (°)","i (°)"]
[null,1.1000000000000001,50.3,150,{"$f":"(MIN(MOD(D3-(N$3),360),360-MOD(D3-(N$3),360)))","v":30},null,{"$f":"ATAN(TAN(PI()/180*C3)*SIN(PI()/180*E3))*180/PI()","v":31.058575649801828},null,2,null,null,22,34,{"$f":"'Waviness Calculator'!J9","v":180},{"$f":"'Waviness Calculator'!D8","v":28},{"$f":"180-(MAX(M3,L3)-MIN(M3,L3))","v":168},{"$f":"(180-P3)/2","v":6},null,"Instructions:"]
[null,1.6,44.9,151,29,null,{"$f":"ATAN(TAN(PI()/180*C4)*SIN(PI()/180*E4))*180/PI()","v":25.786129456389375},null,null,null,null,{"$f":"L3","v":22},{"$f":"M3","v":34},null,{"$f":"O3","v":28}]
[null,3.5,40,151,{"$f":"(MIN(MOD(D5-(N$3),360),360-MOD(D5-(N$3),360)))","v":29},null,22.136667434372825,null,null,null,null,null,null,null,null,null,null,null,"1. Paste corrected (true dip/dip-dir) structural measurements into the blue columns B, C & D. Dip should be positive only."]
[null,4.5,41.8,149,31,null,24.725937409534019,null,null,null,null,null,null,null,null,null,null,null,"The apparent dip in the direction of sliding risk will be calculated in Column G and plotted in the Apparent Dip chart."]
[null,4.9000000000000004,44.3,153,27,null,23.894816451459679,null,null,null,null,{"$f":"M13","v":0.10000000000000009},null,null,null,null,null,null,"2. Set the y-axis major interval in cell I6."]
[null,5.6,51.6,149,31,null,33.016468942764575,null,null,null,null,{"$f":"M12","v":40.5},null,null,null,null,null,null,"3. Adjust the upper and lower bounds (red lines) to fit the plotted data by changing cells L6 and M6."]
[null,6.9,47.8,155,25,null,24.989426372634014,null,null,null,null,{"$f":"setChartAxis(\"Tadpole Plot\",\"Chart 2\",\"Max\",\"Y\",\"Primary\",M12)","v":{"$error":"#VALUE!"}},null,null,null,null,null,null,"4. The resulting ILA and dilation angle (i) are automatically transfered to the Waviness Calculator sheet, provided that cell H16 is set to \"From Tadpole Sheet\"."]
[null,8.3000000000000007,46.1,149,31,null,28.155856544631089,null,null,null,null,{"$f":"setChartAxis(\"Tadpole Plot\",\"Chart 2\",\"Min\",\"Y\",\"Primary\",M13)","v":{"$error":"#VALUE!"}}]
[null,9.1999999999999993,41,151,29,null,22.852434481790908,null,null,null,null,{"$f":"setChartAxis(\"Tadpole Plot\",\"Chart 2\",\"Major\",\"Unit\",\"Primary\",I3)","v":"Unit Primary Major: 2"}]
[null,9.9,44.6,149,31,null,26.925856935875522,null,null,null,null,"Max Depth",{"$f":"_xlfn.MAXIFS(B:B,C:C,\">-10000\")+1","v":40.5}]
[null,10.9,46.8,147,33,null,30.112947034536081,null,null,null,null,"Min Depth",{"$f":"IF(_xlfn.MINIFS($B:$B,$C:$C,\">-10000\")>0,_xlfn.MINIFS($B:$B,$C:$C,\">-10000\")-1,0)","v":0.10000000000000009}]
[null,12.4,49.5,151,29,null,29.580939958371044]
[null,12.9,50.6,151,29,null,30.549822101224166]
[null,13.6,50.5,151,29,null,30.460683709745759]
[null,14.8,45.3,150,30,null,26.805808325586394]
[null,15.7,39.9,145,35,null,25.621646780287406]
[null,16.899999999999999,42,151,29,null,23.582450332119862]
[null,17.5,44,146,34,null,28.369326198724444]
[null,19.5,51.9,149,31,null,33.299006678895509]
[null,20,47.8,155,25,null,24.989426372634014]
[null,21.5,45.9,145,35,null,30.620652002449631]
[null,22.2,40.700000000000003,154,26,null,20.659386143979162]
[null,23.1,45.3,147,33,null,28.827179503522952]
[null,24.4,47.2,149,31,null,29.082397310205032]
[null,24.9,48.8,151,29,null,28.977401954028171]
[null,25.5,51,148,32,null,33.200566809356701]
[null,26.5,50.2,152,28,null,29.400270896453844]
[null,28.4,44.8,150,30,null,26.405385346087723]
[null,29.3,39.799999999999997,155,25,null,19.397791286684456]
[null,29.8,42,153,27,null,22.233510796362737]
[null,30.6,43.8,151,29,null,24.934456690876583]
[null,31.8,52.2,146,34,null,35.788103108753866]
[null,33.1,47.7,152,28,null,27.291132702519281]
[null,33.700000000000003,45.9,149,31,null,27.989664380046861]
[null,35.5,41.1,149,31,null,24.194209490367065]
[null,36,44.8,146,34,null,29.043526300980034]
[null,37,46.6,150,30,null,27.866983392359092]
[null,37.6,49.4,145,35,null,33.790561158536221]
[null,39.5,50.5,154,26,null,28.003452389587455]
[null,null,null,null,180,null,0]
[null,null,null,null,180,null,0]
[null,null,null,null,180,null,0]
[null,null,null,null,180,null,0]
[null,null,null,null,180,null,0]
[null,null,null,null,180,null,0]
[null,null,null,null,180,null,0]
[null,null,null,null,180,null,0]
[null,null,null,null,180,null,0]
[null,null,null,null,180,null,0]
[null,null,null,null,180,null,0]
[null,null,null,null,180,null,0]
[null,null,null,null,180,null,0]
[null,null,null,null,180,null,{"$f":"ATAN(TAN(PI()/180*C55)*SIN(PI()/180*E55))*180/PI()","v":0}]
[null,null,null,null,180,null,0]
[null,null,null,null,180,null,0]
[null,null,null,null,180,null,0]
[null,null,null,null,180,null,0]
[null,null,null,null,180,null,0]
[null,null,null,null,180,null,0]
[null,null,null,null,180,null,0]
[null,null,null,null,180,null,0]
[null,null,null,null,180,null,0]
[null,null,null,null,180,null,0]
[null,null,null,null,180,null,0]
[null,null,null,null,{"$f":"(MIN(MOD(D67-(N$3),360),360-MOD(D67-(N$3),360)))","v":180},null,0]
[null,null,null,null,180,null,0]
[null,null,null,null,180,null,0]
[null,null,null,null,180,null,0]
[null,null,null,null,180,null,0]
[null,null,null,null,180,null,0]
[null,null,null,null,180,null,0]
[null,null,null,null,180,null,0]
[null,null,null,null,180,null,0]
[null,null,null,null,180,null,0]
[null,null,null,null,180,null,0]
[null,null,null,null,180,null,0]
[null,null,null,null,180,null,0]
[null,null,null,null,180,null,0]
[null,null,null,null,180,null,0]
[null,null,null,null,180,null,0]
[null,null,null,null,180,null,0]
[null,null,null,null,180,null,0]
[null,null,null,null,180,null,0]
[null,null,null,null,180,null,0]
[null,null,null,null,180,null,0]
[null,null,null,null,180,null,0]
[null,null,null,null,180,null,0]
[null,null,null,null,180,null,0]
[null,null,null,null,180,null,0]
[null,null,null,null,180,null,0]
[null,null,null,null,180,null,0]
[null,null,null,null,180,null,0]
[null,null,null,null,180,null,0]
[null,null,null,null,180,null,0]
[null,null,null,null,180,null,0]
[null,null,null,null,180,null,0]
[null,null,null,null,180,null,0]
[null,null,null,null,180,null,0]
[null,null,null,null,180,null,0]
[null,null,null,null,180,null,0]
[null,null,null,null,180,null,0]
[null,null,null,null,180,null,0]
[null,null,null,null,180,null,0]
[null,null,null,null,180,null,0]
[null,null,null,null,180,null,0]
[null,null,null,null,180,null,0]
[null,null,null,null,180,null,0]
[null,null,null,null,180,null,0]
[null,null,null,null,180,null,0]
[null,null,null,null,180,null,0]
[null,null,null,null,180,null,0]
[null,null,null,null,180,null,0]
[null,null,null,null,180,null,0]
[null,null,null,null,180,null,0]
[null,null,null,null,180,null,0]
[null,null,null,null,180,null,0]
[null,null,null,null,180,null,{"$f":"ATAN(TAN(PI()/180*C119)*SIN(PI()/180*E119))*180/PI()","v":0}]
[null,null,null,null,180,null,0]
[null,null,null,null,180,null,0]
[null,null,null,null,180,null,0]
[null,null,null,null,180,null,0]
[null,null,null,null,180,null,0]
[null,null,null,null,180,null,0]
[null,null,null,null,180,null,0]
[null,null,null,null,180,null,0]
[null,null,null,null,180,null,0]
[null,null,null,null,180,null,0]
[null,null,null,null,180,null,0]
[null,null,null,null,{"$f":"(MIN(MOD(D131-(N$3),360),360-MOD(D131-(N$3),360)))","v":180},null,0]
[null,null,null,null,180,null,0]
[null,null,null,null,180,null,0]
[null,null,null,null,180,null,0]
[null,null,null,null,180,null,0]
[null,null,null,null,180,null,0]
[null,null,null,null,180,null,0]
[null,null,null,null,180,null,0]
[null,null,null,null,180,null,0]
[null,null,null,null,180,null,0]
[null,null,null,null,180,null,0]
[null,null,null,null,180,null,0]
[null,null,null,null,180,null,0]
[null,null,null,null,180,null,0]
[null,null,null,null,180,null,0]
[null,null,null,null,180,null,0]
[null,null,null,null,180,null,0]
[null,null,null,null,180,null,0]
[null,null,null,null,180,null,0]
[null,null,null,null,180,null,0]
[null,null,null,null,180,null,0]
[null,null,null,null,180,null,0]
[null,null,null,null,180,null,0]
[null,null,null,null,180,null,0]
[null,null,null,null,180,null,0]
[null,null,null,null,180,null,0]
[null,null,null,null,180,null,0]
[null,null,null,null,180,null,0]
[null,null,null,null,180,null,0]
[null,null,null,null,180,null,0]
[null,null,null,null,180,null,0]
[null,null,null,null,180,null,0]
[null,null,null,null,180,null,0]
[null,null,null,null,180,null,0]
[null,null,null,null,180,null,0]
[null,null,null,null,180,null,0]
[null,null,null,null,180,null,0]
[null,null,null,null,180,null,0]
[null,null,null,null,180,null,0]
[null,null,null,null,180,null,0]
[null,null,null,null,180,null,0]
[null,null,null,null,180,null,0]
[null,null,null,null,180,null,0]
[null,null,null,null,180,null,0]
[null,null,null,null,180,null,0]
[null,null,null,null,180,null,0]
[null,null,null,null,180,null,0]
[null,null,null,null,180,null,0]
[null,null,null,null,180,null,0]
[null,null,null,null,180,null,0]
[null,null,null,null,180,null,0]
[null,null,null,null,180,null,0]
[null,null,null,null,180,null,{"$f":"ATAN(TAN(PI()/180*C183)*SIN(PI()/180*E183))*180/PI()","v":0}]
[null,null,null,null,180,null,0]
[null,null,null,null,180,null,0]
[null,null,null,null,180,null,0]
[null,null,null,null,180,null,0]
[null,null,null,null,180,null,0]
[null,null,null,null,180,null,0]
[null,null,null,null,180,null,0]
[null,null,null,null,180,null,0]
[null,null,null,null,180,null,0]
[null,null,null,null,180,null,0]
[null,null,null,null,180,null,0]
[null,null,null,null,{"$f":"(MIN(MOD(D195-(N$3),360),360-MOD(D195-(N$3),360)))","v":180},null,0]
[null,null,null,null,180,null,0]
[null,null,null,null,180,null,0]
[null,null,null,null,180,null,0]
[null,null,null,null,180,null,0]
[null,null,null,null,180,null,0]
[null,null,null,null,180,null,0]
[null,null,null,null,180,null,0]
[null,null,null,null,180,null,0]
[null,null,null,null,180,null,0]
[null,null,null,null,180,null,0]
[null,null,null,null,180,null,0]
[null,null,null,null,180,null,0]
[null,null,null,null,180,null,0]
[null,null,null,null,180,null,0]
[null,null,null,null,180,null,0]
[null,null,null,null,180,null,0]
[null,null,null,null,180,null,0]
[null,null,null,null,180,null,0]
[null,null,null,null,180,null,0]
[null,null,null,null,180,null,0]
[null,null,null,null,180,null,0]
[null,null,null,null,180,null,0]
[null,null,null,null,180,null,0]
[null,null,null,null,180,null,0]
[null,null,null,null,180,null,0]
[null,null,null,null,180,null,0]
[null,null,null,null,180,null,0]
[null,null,null,null,180,null,0]
[null,null,null,null,180,null,0]
[null,null,null,null,180,null,0]
[null,null,null,null,180,null,0]
[null,null,null,null,180,null,0]
[null,null,null,null,180,null,0]
[null,null,null,null,180,null,0]
[null,null,null,null,180,null,0]
[null,null,null,null,180,null,0]
[null,null,null,null,180,null,0]
[null,null,null,null,180,null,0]
[null,null,null,null,180,null,0]
[null,null,null,null,180,null,0]
[null,null,null,null,180,null,0]
[null,null,null,null,180,null,0]
[null,null,null,null,180,null,0]
[null,null,null,null,180,null,0]
[null,null,null,null,180,null,0]
[null,null,null,null,180,null,0]
[null,null,null,null,180,null,0]
[null,null,null,null,180,null,0]
[null,null,null,null,180,null,0]
[null,null,null,null,180,null,0]
[null,null,null,null,180,null,0]
[null,null,null,null,180,null,{"$f":"ATAN(TAN(PI()/180*C247)*SIN(PI()/180*E247))*180/PI()","v":0}]
[null,null,null,null,180,null,0]
[null,null,null,null,180,null,0]
[null,null,null,null,180,null,0]
[null,null,null,null,180,null,0]
[null,null,null,null,180,null,0]
[null,null,null,null,180,null,0]
[null,null,null,null,180,null,0]
[null,null,null,null,180,null,0]
[null,null,null,null,180,null,0]
[null,null,null,null,180,null,0]
[null,null,null,null,180,null,0]
[null,null,null,null,{"$f":"(MIN(MOD(D259-(N$3),360),360-MOD(D259-(N$3),360)))","v":180},null,0]
[null,null,null,null,180,null,0]
[null,null,null,null,180,null,0]
[null,null,null,null,180,null,0]
[null,null,null,null,180,null,0]
[null,null,null,null,180,null,0]
[null,null,null,null,180,null,0]
[null,null,null,null,180,null,0]
[null,null,null,null,180,null,0]
[null,null,null,null,180,null,0]
[null,null,null,null,180,null,0]
[null,null,null,null,180,null,0]
[null,null,null,null,180,null,0]
[null,null,null,null,180,null,0]
[null,null,null,null,180,null,0]
[null,null,null,null,180,null,0]
[null,null,null,null,180,null,0]
[null,null,null,null,180,null,0]
[null,null,null,null,180,null,0]
[null,null,null,null,180,null,0]
[null,null,null,null,180,null,0]
[null,null,null,null,180,null,0]
[null,null,null,null,180,null,0]
[null,null,null,null,180,null,0]
[null,null,null,null,180,null,0]
[null,null,null,null,180,null,0]
[null,null,null,null,180,null,0]
[null,null,null,null,180,null,0]
[null,null,null,null,180,null,0]
[null,null,null,null,180,null,0]
[null,null,null,null,180,null,0]
[null,null,null,null,180,null,0]
[null,null,null,null,180,null,0]
[null,null,null,null,180,null,0]
[null,null,null,null,180,null,0]
[null,null,null,null,180,null,0]
[null,null,null,null,180,null,0]
[null,null,null,null,180,null,0]
[null,null,null,null,180,null,0]
[null,null,null,null,180,null,0]
[null,null,null,null,180,null,0]
[null,null,null,null,180,null,0]
[null,null,null,null,180,null,0]
[null,null,null,null,180,null,0]
[null,null,null,null,180,null,0]
[null,null,null,null,180,null,0]
[null,null,null,null,180,null,0]
[null,null,null,null,180,null,0]
[null,null,null,null,180,null,0]
[null,null,null,null,180,null,0]
[null,null,null,null,180,null,0]
[null,null,null,null,180,null,0]
[null,null,null,null,180,null,{"$f":"ATAN(TAN(PI()/180*C311)*SIN(PI()/180*E311))*180/PI()","v":0}]
[null,null,null,null,180,null,0]
[null,null,null,null,180,null,0]
[null,null,null,null,180,null,0]
[null,null,null,null,180,null,0]
[null,null,null,null,180,null,0]
[null,null,null,null,180,null,0]
[null,null,null,null,180,null,0]
[null,null,null,null,180,null,0]
[null,null,null,null,180,null,0]
[null,null,null,null,180,null,0]
[null,null,null,null,180,null,0]
[null,null,null,null,{"$f":"(MIN(MOD(D323-(N$3),360),360-MOD(D323-(N$3),360)))","v":180},null,0]
[null,null,null,null,180,null,0]
[null,null,null,null,180,null,0]
[null,null,null,null,180,null,0]
[null,null,null,null,180,null,0]
[null,null,null,null,180,null,0]
[null,null,null,null,180,null,0]
[null,null,null,null,180,null,0]
[null,null,null,null,180,null,0]
[null,null,null,null,180,null,0]
[null,null,null,null,180,null,0]
[null,null,null,null,180,null,0]
[null,null,null,null,180,null,0]
[null,null,null,null,180,null,0]
[null,null,null,null,180,null,0]
[null,null,null,null,180,null,0]
[null,null,null,null,180,null,0]
[null,null,null,null,180,null,0]
[null,null,null,null,180,null,0]
[null,null,null,null,180,null,0]
[null,null,null,null,180,null,0]
[null,null,null,null,180,null,0]
[null,null,null,null,180,null,0]
[null,null,null,null,180,null,0]
[null,null,null,null,180,null,0]
[null,null,null,null,180,null,0]
[null,null,null,null,180,null,0]
[null,null,null,null,180,null,0]
[null,null,null,null,180,null,0]
[null,null,null,null,180,null,0]
[null,null,null,null,180,null,0]
[null,null,null,null,180,null,0]
[null,null,null,null,180,null,0]
[null,null,null,null,180,null,0]
[null,null,null,null,180,null,0]
[null,null,null,null,180,null,0]
[null,null,null,null,180,null,0]
[null,null,null,null,180,null,0]
[null,null,null,null,180,null,0]
[null,null,null,null,180,null,0]
[null,null,null,null,180,null,0]
[null,null,null,null,180,null,0]
[null,null,null,null,180,null,0]
[null,null,null,null,180,null,0]
[null,null,null,null,180,null,0]
[null,null,null,null,180,null,0]
[null,null,null,null,180,null,0]
[null,null,null,null,180,null,0]
[null,null,null,null,180,null,0]
[null,null,null,null,180,null,0]
[null,null,null,null,180,null,0]
[null,null,null,null,180,null,0]
[null,null,null,null,180,null,{"$f":"ATAN(TAN(PI()/180*C375)*SIN(PI()/180*E375))*180/PI()","v":0}]
[null,null,null,null,180,null,0]
[null,null,null,null,180,null,0]
[null,null,null,null,180,null,0]
[null,null,null,null,180,null,0]
[null,null,null,null,180,null,0]
[null,null,null,null,180,null,0]
[null,null,null,null,180,null,0]
[null,null,null,null,180,null,0]
[null,null,null,null,180,null,0]
[null,null,null,null,180,null,0]
[null,null,null,null,180,null,0]
[null,null,null,null,{"$f":"(MIN(MOD(D387-(N$3),360),360-MOD(D387-(N$3),360)))","v":180},null,0]
[null,null,null,null,180,null,0]
[null,null,null,null,180,null,0]
[null,null,null,null,180,null,0]
[null,null,null,null,180,null,0]
[null,null,null,null,180,null,0]
[null,null,null,null,180,null,0]
[null,null,null,null,180,null,0]
[null,null,null,null,180,null,0]
[null,null,null,null,180,null,0]
[null,null,null,null,180,null,0]
[null,null,null,null,180,null,0]
[null,null,null,null,180,null,0]
[null,null,null,null,180,null,0]
[null,null,null,null,180,null,0]
[null,null,null,null,180,null,0]
[null,null,null,null,180,null,0]
[null,null,null,null,180,null,0]
[null,null,null,null,180,null,0]
[null,null,null,null,180,null,0]
[null,null,null,null,180,null,0]
[null,null,null,null,180,null,0]
[null,null,null,null,180,null,0]
[null,null,null,null,180,null,0]
[null,null,null,null,180,null,0]
[null,null,null,null,180,null,0]
[null,null,null,null,180,null,0]
[null,null,null,null,180,null,0]
[null,null,null,null,180,null,0]
[null,null,null,null,180,null,0]
[null,null,null,null,180,null,0]
[null,null,null,null,180,null,0]
[null,null,null,null,180,null,0]
[null,null,null,null,180,null,0]
[null,null,null,null,180,null,0]
[null,null,null,null,180,null,0]
[null,null,null,null,180,null,0]
[null,null,null,null,180,null,0]
[null,null,null,null,180,null,0]
[null,null,null,null,180,null,0]
[null,null,null,null,180,null,0]
[null,null,null,null,180,null,0]
[null,null,null,null,180,null,0]
[null,null,null,null,180,null,0]
[null,null,null,null,180,null,0]
[null,null,null,null,180,null,0]
[null,null,null,null,180,null,0]
[null,null,null,null,180,null,0]
[null,null,null,null,180,null,0]
[null,null,null,null,180,null,0]
[null,null,null,null,180,null,0]
[null,null,null,null,180,null,0]
[null,null,null,null,180,null,{"$f":"ATAN(TAN(PI()/180*C439)*SIN(PI()/180*E439))*180/PI()","v":0}]
[null,null,null,null,180,null,0]
[null,null,null,null,180,null,0]
[null,null,null,null,180,null,0]
[null,null,null,null,180,null,0]
[null,null,null,null,180,null,0]
[null,null,null,null,180,null,0]
[null,null,null,null,180,null,0]
[null,null,null,null,180,null,0]
[null,null,null,null,180,null,0]
[null,null,null,null,180,null,0]
[null,null,null,null,180,null,0]
[null,null,null,null,{"$f":"(MIN(MOD(D451-(N$3),360),360-MOD(D451-(N$3),360)))","v":180},null,0]
[null,null,null,null,180,null,0]
[null,null,null,null,180,null,0]
[null,null,null,null,180,null,0]
[null,null,null,null,180,null,0]
[null,null,null,null,180,null,0]
[null,null,null,null,180,null,0]
[null,null,null,null,180,null,0]
[null,null,null,null,180,null,0]
[null,null,null,null,180,null,0]
[null,null,null,null,180,null,0]
[null,null,null,null,180,null,0]
[null,null,null,null,180,null,0]
[null,null,null,null,180,null,0]
[null,null,null,null,180,null,0]
[null,null,null,null,180,null,0]
[null,null,null,null,180,null,0]
[null,null,null,null,180,null,0]
[null,null,null,null,180,null,0]
[null,null,null,null,180,null,0]
[null,null,null,null,180,null,0]
[null,null,null,null,180,null,0]
[null,null,null,null,180,null,0]
[null,null,null,null,180,null,0]
[null,null,null,null,180,null,0]
[null,null,null,null,180,null,0]
[null,null,null,null,180,null,0]
[null,null,null,null,180,null,0]
[null,null,null,null,180,null,0]
[null,null,null,null,180,null,0]
[null,null,null,null,180,null,0]
[null,null,null,null,180,null,0]
[null,null,null,null,180,null,0]
[null,null,null,null,180,null,0]
[null,null,null,null,180,null,0]
[null,null,null,null,180,null,0]
[null,null,null,null,180,null,0]
[null,null,null,null,180,null,0]
[null,null,null,null,180,null,0]
[null,null,null,null,180,null,0]
[null,null,null,null,180,null,0]
[null,null,null,null,180,null,0]
[null,null,null,null,180,null,0]
[null,null,null,null,180,null,0]
[null,null,null,null,180,null,0]
[null,null,null,null,180,null,0]
[null,null,null,null,180,null,0]
[null,null,null,null,180,null,0]